bitfinex-derivatives/quotes_BTCF0:USTF0_20220102
["timestamp","ask_amount","ask_price","bid_price","bid_amount"]
[1641108155842,0.26533583,47184.0,47183.0,2.20284536]
[1641108156546,0.84315119,47185.0,47183.0,0.88287421]
[1641108156747,0.43287488,47198.0,47183.0,0.88287421]
[1641108156748,0.36132419,47184.0,47183.0,0.88287421]
[1641108158846,0.84315119,47187.0,47183.0,0.88287421]
[1641108158847,0.36132419,47185.0,47183.0,0.88287421]
[1641108159047,0.36132419,47185.0,47184.0,0.18]
[1641108159247,0.84315119,47188.0,47184.0,0.88287421]
[1641108159448,0.84315119,47188.0,47187.0,0.18]
[1641108159850,0.84315119,47188.0,47187.0,0.32033567]
[1641108160950,0.84315119,47188.0,47187.0,1.02320988]
[1641108161152,0.98915119,47188.0,47187.0,1.02320988]
[1641108162952,1.07948164,47188.0,47187.0,1.02320988]
[1641108164553,0.93348164,47188.0,47187.0,1.02320988]
[1641108165052,0.84315119,47188.0,47187.0,1.02320988]
[1641108165255,0.91815119,47188.0,47187.0,1.02320988]
[1641108166454,0.84315119,47188.0,47187.0,1.02320988]
[1641108167155,1.05248164,47188.0,47187.0,1.02320988]
[1641108167657,0.96215119,47188.0,47187.0,1.02320988]
[1641108168456,0.93348164,47188.0,47187.0,1.02320988]
[1641108169156,0.85115119,47188.0,47187.0,1.02320988]
[1641108169956,0.94148164,47188.0,47187.0,1.02320988]
[1641108170356,0.008,47188.0,47187.0,1.02320988]
[1641108170557,0.60191483,47189.0,47187.0,2.22198279]
[1641108170960,0.60191483,47189.0,47187.0,1.51910858]
[1641108171256,0.62991483,47189.0,47187.0,1.51910858]
[1641108171661,0.62991483,47189.0,47188.0,0.70287421]
[1641108172560,0.60191483,47189.0,47188.0,0.70287421]
[1641108173161,0.75491483,47189.0,47188.0,0.70287421]
[1641108174560,0.60191483,47189.0,47188.0,0.70287421]
[1641108175264,0.68491483,47189.0,47188.0,0.70287421]
[1641108176070,0.68491483,47189.0,47188.0,1.90164712]
[1641108177168,0.68191483,47189.0,47188.0,1.90164712]
[1641108177768,0.08,47189.0,47188.0,1.90164712]
[1641108178572,0.60191483,47190.0,47188.0,1.90164712]
[1641108178772,0.60191483,47189.0,47188.0,1.90164712]
[1641108179173,0.70891483,47189.0,47188.0,1.19877291]
[1641108179477,1.3250884,47196.0,47188.0,1.19877291]
[1641108179674,1.3250884,47196.0,47190.0,0.18]
[1641108179874,1.3250884,47197.0,47190.0,0.18]
[1641108180375,1.3250884,47197.0,47193.0,0.14033567]
[1641108180574,1.3250884,47197.0,47193.0,0.22381567]
[1641108180975,0.09032109,47196.0,47193.0,0.22381567]
[1641108181173,0.09032109,47196.0,47193.0,0.41181567]
[1641108181982,0.09032109,47199.0,47193.0,0.41181567]
[1641108182382,0.18,47203.0,47193.0,0.41181567]
[1641108182383,0.09032109,47195.0,47193.0,0.41181567]
[1641108182579,0.09032109,47195.0,47193.0,0.22381567]
[1641108183181,0.128,47195.0,47193.0,0.40981567]
[1641108183680,0.09032109,47194.0,47193.0,0.40981567]
[1641108184586,0.09032109,47194.0,47193.0,0.22381567]
[1641108185285,0.23132109,47194.0,47193.0,0.41181567]
[1641108186487,0.23132109,47194.0,47193.0,0.22381567]
[1641108186690,0.09032109,47194.0,47193.0,0.22381567]
[1641108187287,0.16532109,47194.0,47193.0,0.41281567]
[1641108187488,0.075,47194.0,47193.0,0.41281567]
[1641108187989,1.00793273,47194.0,47193.0,1.25136867]
[1641108188488,0.09032109,47194.0,47193.0,0.22381567]
[1641108189191,0.16232109,47194.0,47193.0,0.41281567]
[1641108189593,0.91461164,47194.0,47193.0,1.25142406]
[1641108189992,1.00493273,47194.0,47193.0,1.25142406]
[1641108190493,0.91461164,47194.0,47193.0,1.25142406]
[1641108190693,0.84261164,47195.0,47193.0,0.82275266]
[1641108191398,0.93961164,47195.0,47193.0,1.01075266]
[1641108192197,0.93961164,47195.0,47194.0,0.59893699]
[1641108192198,0.097,47195.0,47194.0,0.59893699]
[1641108192496,0.84261164,47196.0,47194.0,0.59893699]
[1641108192795,1.3250884,47201.0,47193.0,0.22381567]
[1641108192996,0.02119048,47203.0,47193.0,1.06242406]
[1641108192997,0.09032263,47195.0,47193.0,1.06242406]
[1641108193295,0.09032263,47195.0,47193.0,1.15842406]
[1641108193997,0.8426214,47194.0,47193.0,1.15842406]
[1641108194399,0.8426214,47194.0,47193.0,0.31981567]
[1641108194600,0.161,47201.0,47193.0,0.31981567]
[1641108194601,0.8426214,47195.0,47193.0,1.01638829]
[1641108195199,0.9606214,47195.0,47194.0,1.5351296]
[1641108195701,0.118,47195.0,47194.0,1.5351296]
[1641108195902,0.20832263,47195.0,47193.0,0.41081567]
[1641108196502,0.20832263,47195.0,47194.0,0.69657262]
[1641108196802,0.09032263,47195.0,47194.0,0.69657262]
[1641108197201,0.09032263,47195.0,47194.0,0.191]
[1641108197703,0.09032263,47198.0,47194.0,0.88757262]
[1641108198502,0.09032263,47198.0,47195.0,0.35954989]
[1641108199105,0.09032263,47198.0,47196.0,0.35954989]
[1641108199303,0.14832263,47198.0,47196.0,0.35954989]
[1641108200505,0.09032263,47197.0,47196.0,0.35954989]
[1641108201307,0.162,47197.0,47196.0,0.54854989]
[1641108201809,0.25232263,47197.0,47196.0,0.54854989]
[1641108203216,0.25832263,47197.0,47196.0,0.54754989]
[1641108204515,0.09032263,47197.0,47196.0,0.35954989]
[1641108205224,0.26132263,47197.0,47196.0,0.54754989]
[1641108206520,0.09032263,47197.0,47196.0,0.35954989]
[1641108207218,0.09032263,47197.0,47196.0,0.54854989]
[1641108207417,0.09032263,47199.0,47196.0,0.68888556]
[1641108208522,0.09032263,47199.0,47196.0,0.49988556]
[1641108208721,1.41541103,47199.0,47196.0,0.49988556]
[1641108209322,0.09032263,47198.0,47196.0,0.31333567]
[1641108210023,0.09032263,47198.0,47196.0,0.67288556]
[1641108210623,0.09032263,47198.0,47196.0,0.49988556]
[1641108210825,0.09032263,47198.0,47196.0,0.14033567]
[1641108211226,0.25832263,47198.0,47196.0,0.31133567]
[1641108212326,0.09032263,47197.0,47196.0,0.31133567]
[1641108212525,0.09032263,47197.0,47196.0,0.14033567]
[1641108212926,0.09032263,47197.0,47196.0,0.49988556]
[1641108213327,0.26432263,47197.0,47196.0,0.67688556]
[1641108214628,0.09032263,47197.0,47196.0,0.49988556]
[1641108215139,0.09032263,47197.0,47196.0,0.14033567]
[1641108215340,0.26432263,47197.0,47196.0,0.31733567]
[1641108215741,1.58941103,47197.0,47196.0,0.31733567]
[1641108216445,1.58941103,47197.0,47196.0,1.60525971]
[1641108216643,1.41541103,47197.0,47196.0,1.42825971]
[1641108217446,1.58941103,47197.0,47196.0,1.60425971]
[1641108218650,1.41541103,47197.0,47196.0,1.42825971]
[1641108219347,1.58941103,47197.0,47196.0,1.60525971]
[1641108220548,1.41541103,47197.0,47196.0,1.42825971]
[1641108221348,1.58941103,47197.0,47196.0,1.60525971]
[1641108222850,0.26432263,47197.0,47196.0,1.60525971]
[1641108223152,0.09032263,47197.0,47196.0,1.42825971]
[1641108223450,1.54941103,47197.0,47196.0,1.60825971]
[1641108225253,1.53841103,47197.0,47196.0,1.60825971]
[1641108226152,0.21332263,47197.0,47196.0,1.60825971]
[1641108226754,0.09032263,47197.0,47196.0,1.42825971]
[1641108227255,0.21732263,47197.0,47196.0,0.91862128]
[1641108227457,1.54241103,47197.0,47196.0,0.31933567]
[1641108227856,1.54241103,47197.0,47196.0,1.00888616]
[1641108228056,1.54241103,47197.0,47196.0,1.60817177]
[1641108228555,1.54241103,47197.0,47196.0,1.42917177]
[1641108228755,1.41541103,47197.0,47196.0,1.42917177]
[1641108229156,1.41541103,47197.0,47196.0,0.14033567]
[1641108229356,1.53841103,47197.0,47196.0,0.32033567]
[1641108230559,1.53841103,47197.0,47196.0,1.62454508]
[1641108230758,1.41541103,47197.0,47196.0,1.44454508]
[1641108231157,1.41541103,47197.0,47196.0,0.73962128]
[1641108231358,1.54041103,47197.0,47196.0,0.91962128]
[1641108231758,1.54041103,47197.0,47196.0,1.62454508]
[1641108232759,1.41541103,47197.0,47196.0,1.44454508]
[1641108233357,1.58941103,47197.0,47196.0,1.62154508]
[1641108234560,1.58941103,47197.0,47196.0,1.48120941]
[1641108235259,1.76341103,47197.0,47196.0,1.65820941]
[1641108235460,1.58941103,47197.0,47196.0,1.48120941]
[1641108235860,1.58941103,47197.0,47196.0,1.62154508]
[1641108236563,1.41541103,47197.0,47196.0,1.44454508]
[1641108237365,1.59041103,47197.0,47196.0,1.62154508]
[1641108238564,1.41541103,47197.0,47196.0,1.30420941]
[1641108239265,1.58941103,47197.0,47196.0,1.48020941]
[1641108239668,2.9593412,47197.0,47196.0,1.48020941]
[1641108239868,3.18218059,47197.0,47196.0,1.48020941]
[1641108240265,1.85709449,47197.0,47196.0,0.77528561]
[1641108240466,1.85709449,47197.0,47193.0,0.35926921]
[1641108240467,1.80352723,47197.0,47193.0,0.35926921]
[1641108240666,1.31419743,47194.0,47191.0,0.59928561]
[1641108240869,0.001,47192.0,47190.0,0.83855698]
[1641108241068,1.112,47190.0,47172.0,0.02]
[1641108241266,0.18,47185.0,47181.0,0.14033567]
[1641108241469,0.25749,47185.0,47184.0,1.19859332]
[1641108242069,0.25749,47185.0,47180.0,1.31920032]
[1641108242371,1.67292568,47185.0,47182.0,0.58568381]
[1641108243171,0.11152142,47184.0,47177.0,2.59285845]
[1641108243370,0.18,47181.0,47177.0,2.59285845]
[1641108243571,0.11152142,47184.0,47177.0,2.59285845]
[1641108243770,0.18,47181.0,47177.0,2.59285845]
[1641108244170,0.09032263,47183.0,47177.0,1.90488413]
[1641108244972,0.18,47181.0,47177.0,1.90488413]
[1641108245171,0.18,47181.0,47177.0,0.58568381]
[1641108245372,0.18,47181.0,47177.0,0.70268381]
[1641108246071,0.09032263,47180.0,47177.0,0.70268381]
[1641108246571,0.09032263,47180.0,47177.0,0.58568381]
[1641108246773,1.32511305,47183.0,47178.0,0.58568381]
[1641108246774,0.09032263,47182.0,47178.0,0.58568381]
[1641108246976,0.09032263,47182.0,47178.0,0.67136381]
[1641108247374,0.27232263,47182.0,47178.0,0.78836381]
[1641108247578,0.182,47182.0,47178.0,0.20268]
[1641108248076,0.09032263,47181.0,47179.0,0.58568381]
[1641108248975,0.09032263,47181.0,47179.0,1.90488413]
[1641108249377,0.27532263,47181.0,47179.0,2.08688413]
[1641108250185,0.84321446,47180.0,47179.0,0.76768381]
[1641108250675,0.84321446,47180.0,47179.0,0.58568381]
[1641108251376,0.60228054,47180.0,47179.0,2.09088413]
[1641108252580,0.60228054,47180.0,47179.0,1.90488413]
[1641108253280,0.60228054,47180.0,47179.0,2.09088413]
[1641108254084,0.84321446,47181.0,47179.0,2.09088413]
[1641108254885,0.84321446,47181.0,47179.0,1.90488413]
[1641108255286,1.02821446,47181.0,47179.0,2.08588413]
[1641108255585,0.185,47181.0,47180.0,0.58568381]
[1641108255888,0.27534343,47181.0,47180.0,0.58568381]
[1641108256699,1.50511305,47186.0,47180.0,0.58568381]
[1641108257199,0.36096251,47184.0,47180.0,0.58568381]
[1641108257606,0.36096251,47185.0,47180.0,0.35909701]
[1641108259304,0.54896251,47185.0,47179.0,0.35909701]
[1641108259806,0.36096251,47184.0,47179.0,0.35909701]
[1641108261006,0.36096251,47185.0,47179.0,0.35909701]
[1641108261405,0.193,47184.0,47179.0,0.35909701]
[1641108262707,0.36096251,47184.0,47179.0,0.35909701]
[1641108263109,0.36096251,47185.0,47179.0,0.35909701]
[1641108263308,0.193,47184.0,47179.0,0.35909701]
[1641108264708,0.36096251,47185.0,47178.0,0.59849502]
[1641108264709,0.36096251,47185.0,47180.0,0.35909701]
[1641108265310,0.55696251,47185.0,47180.0,0.35909701]
[1641108266610,0.36096251,47185.0,47180.0,0.35909701]
[1641108267211,0.36096251,47185.0,47180.0,0.53109701]
[1641108267414,0.53496251,47185.0,47180.0,0.53109701]
[1641108268316,0.174,47185.0,47181.0,0.35909701]
[1641108268614,0.36096251,47186.0,47181.0,0.35909701]
[1641108269116,0.36096251,47186.0,47183.0,0.18]
[1641108269317,0.46096251,47186.0,47181.0,0.56328919]
[1641108270317,0.1,47186.0,47184.0,0.35909701]
[1641108270518,0.36096251,47189.0,47184.0,0.35909701]
[1641108270717,0.36096251,47189.0,47186.0,0.14033567]
[1641108271317,0.52396251,47189.0,47186.0,0.31533567]
[1641108272718,0.36096251,47189.0,47186.0,0.14033567]
[1641108273321,0.50096251,47189.0,47186.0,0.31833567]
[1641108274722,0.36096251,47189.0,47186.0,0.14033567]
[1641108275324,0.55515895,47189.0,47186.0,0.31433567]
[1641108275526,0.53396251,47189.0,47186.0,0.31433567]
[1641108275924,0.53396251,47189.0,47186.0,0.67343268]
[1641108275925,0.36096251,47187.0,47186.0,0.67343268]
[1641108276324,0.18,47187.0,47186.0,0.31433567]
[1641108276524,0.60160419,47188.0,47186.0,0.31433567]
[1641108277025,0.60160419,47188.0,47186.0,0.14033567]
[1641108277423,0.78360419,47188.0,47186.0,0.28933567]
[1641108277724,1.71589025,47188.0,47186.0,0.28933567]
[1641108277924,0.60160419,47187.0,47186.0,0.28933567]
[1641108278324,0.93228606,47187.0,47186.0,0.28933567]
[1641108278624,0.93228606,47187.0,47186.0,0.14033567]
[1641108279028,0.93228606,47187.0,47185.0,0.59849502]
[1641108279427,1.11228606,47187.0,47186.0,0.164]
[1641108280728,0.93228606,47187.0,47185.0,0.59849502]
[1641108281329,1.10528606,47187.0,47185.0,0.77349502]
[1641108281729,0.173,47187.0,47185.0,1.27226029]
[1641108281932,0.173,47187.0,47186.0,0.59849502]
[1641108282629,0.84194804,47188.0,47186.0,0.59849502]
[1641108282829,0.09033802,47187.0,47186.0,1.09726029]
[1641108283329,0.26233802,47187.0,47186.0,1.27026029]
[1641108283530,0.172,47187.0,47186.0,0.77149502]
[1641108284731,0.84194804,47188.0,47186.0,0.59849502]
[1641108284931,0.84194804,47188.0,47186.0,1.09726029]
[1641108284932,0.09033802,47187.0,47186.0,1.09726029]
[1641108285333,0.09033802,47187.0,47186.0,1.27026029]
[1641108286033,0.99794804,47188.0,47186.0,0.77149502]
[1641108286735,0.09033802,47187.0,47186.0,0.59849502]
[1641108287537,0.23433802,47187.0,47186.0,0.77349502]
[1641108288239,0.144,47187.0,47186.0,0.77349502]
[1641108288639,0.84194804,47188.0,47186.0,0.59849502]
[1641108289238,0.09033802,47187.0,47186.0,1.12959952]
[1641108289439,0.09033802,47187.0,47186.0,1.29459952]
[1641108289842,1.00594804,47188.0,47186.0,0.76349502]
[1641108290450,1.00594804,47188.0,47186.0,0.165]
[1641108290451,0.93228606,47187.0,47186.0,0.165]
[1641108290654,0.93228606,47187.0,47185.0,0.59849502]
[1641108291452,1.10228606,47187.0,47185.0,0.77349502]
[1641108291855,1.01194804,47187.0,47185.0,0.77349502]
[1641108292655,0.84194804,47187.0,47185.0,0.59849502]
[1641108293355,0.84194804,47186.0,47185.0,1.53793019]
[1641108294661,0.84194804,47186.0,47185.0,1.36293019]
[1641108294860,0.84194804,47186.0,47185.0,0.52503717]
[1641108295061,0.93156804,47186.0,47185.0,0.52503717]
[1641108295361,1.10556804,47186.0,47185.0,0.70303717]
[1641108296560,0.93156804,47186.0,47185.0,0.52503717]
[1641108297363,1.10356804,47186.0,47185.0,0.70103717]
[1641108297565,1.19390817,47186.0,47185.0,0.70103717]
[1641108298864,1.02190817,47186.0,47185.0,0.52503717]
[1641108299265,1.02190817,47186.0,47185.0,1.36293019]
[1641108299466,1.19390817,47186.0,47185.0,1.53893019]
[1641108300667,1.02190817,47186.0,47185.0,1.36293019]
[1641108301468,1.16190817,47186.0,47185.0,1.54193019]
[1641108301868,0.31996013,47186.0,47185.0,0.70403717]
[1641108302067,0.23034013,47186.0,47185.0,0.70403717]
[1641108302971,0.09034013,47186.0,47185.0,0.52503717]
[1641108303370,0.22834013,47186.0,47185.0,0.70303717]
[1641108303769,0.138,47186.0,47185.0,0.70303717]
[1641108304172,0.22834013,47186.0,47185.0,0.70303717]
[1641108304771,0.09034013,47186.0,47185.0,0.52503717]
[1641108305574,0.26534013,47186.0,47185.0,0.70303717]
[1641108306774,0.09034013,47186.0,47185.0,0.52503717]
[1641108307175,0.09034013,47186.0,47185.0,1.36535288]
[1641108307374,0.26434013,47186.0,47185.0,1.54335288]
[1641108308575,0.26434013,47186.0,47185.0,0.70303717]
[1641108308776,0.09034013,47186.0,47185.0,0.52503717]
[1641108309177,0.09034013,47186.0,47185.0,1.36535288]
[1641108309475,0.22734013,47186.0,47185.0,1.54535288]
[1641108310176,0.137,47186.0,47185.0,0.70503717]
[1641108310681,0.09034013,47186.0,47185.0,0.52503717]
[1641108311379,0.20034013,47186.0,47185.0,0.70903717]
[1641108311781,0.11,47186.0,47185.0,0.70903717]
[1641108312280,0.20034013,47186.0,47185.0,0.70903717]
[1641108312680,0.09034013,47186.0,47185.0,0.52503717]
[1641108313481,0.21934013,47186.0,47185.0,0.70803717]
[1641108313681,0.129,47186.0,47185.0,0.70803717]
[1641108314283,0.21934013,47186.0,47185.0,0.70803717]
[1641108314884,0.09034013,47186.0,47185.0,0.52503717]
[1641108315484,0.138,47186.0,47185.0,0.70503717]
[1641108316186,0.22834013,47186.0,47185.0,1.54564311]
[1641108317388,0.21834013,47186.0,47185.0,1.54764311]
[1641108318890,0.09034013,47186.0,47185.0,1.36564311]
[1641108319291,0.09034013,47186.0,47185.0,0.52503717]
[1641108319489,0.22934013,47186.0,47185.0,0.70803717]
[1641108319889,0.139,47186.0,47185.0,1.90538626]
[1641108320892,0.22934013,47186.0,47185.0,1.90538626]
[1641108321295,0.09034013,47186.0,47185.0,1.72238626]
[1641108321498,0.23034013,47186.0,47185.0,0.70603717]
[1641108322798,0.09034013,47186.0,47185.0,0.52503717]
[1641108323399,0.26534013,47186.0,47185.0,0.70303717]
[1641108323802,0.175,47186.0,47185.0,0.70303717]
[1641108324310,0.26534013,47186.0,47185.0,0.70303717]
[1641108324810,0.09034013,47186.0,47185.0,0.52503717]
[1641108325610,0.26434013,47186.0,47185.0,0.70303717]
[1641108325812,0.174,47186.0,47185.0,0.70303717]
[1641108326312,0.26434013,47186.0,47185.0,0.70303717]
[1641108326812,0.09034013,47186.0,47185.0,0.52503717]
[1641108327413,0.26534013,47186.0,47185.0,0.70303717]
[1641108327616,0.175,47186.0,47185.0,0.70303717]
[1641108328115,0.26534013,47186.0,47185.0,0.70303717]
[1641108328718,0.26534013,47186.0,47185.0,0.52503717]
[1641108328916,0.09034013,47186.0,47185.0,0.52503717]
[1641108329521,0.26534013,47186.0,47185.0,0.70303717]
[1641108329729,0.175,47186.0,47185.0,0.70303717]
[1641108330221,0.26534013,47186.0,47185.0,0.70303717]
[1641108330819,0.09034013,47186.0,47185.0,0.52503717]
[1641108331423,0.175,47186.0,47185.0,0.70303717]
[1641108332124,0.26534013,47186.0,47185.0,0.70303717]
[1641108332723,0.09034013,47186.0,47185.0,0.52503717]
[1641108333428,0.26434013,47186.0,47185.0,0.70303717]
[1641108333630,0.174,47186.0,47185.0,0.70303717]
[1641108334729,0.09034013,47186.0,47185.0,0.52503717]
[1641108335127,1.32511305,47188.0,47185.0,0.52503717]
[1641108335526,0.174,47186.0,47185.0,0.70303717]
[1641108336527,0.26434013,47186.0,47185.0,0.70303717]
[1641108336835,0.09034013,47186.0,47185.0,0.52503717]
[1641108337427,0.26534013,47186.0,47185.0,0.70303717]
[1641108337927,0.175,47186.0,47185.0,0.70303717]
[1641108338530,0.26534013,47186.0,47185.0,0.70303717]
[1641108338930,0.09034013,47186.0,47185.0,0.52503717]
[1641108339531,0.26534013,47186.0,47185.0,0.70303717]
[1641108340833,0.09034013,47186.0,47185.0,0.52503717]
[1641108341433,0.26434013,47186.0,47185.0,0.70303717]
[1641108341638,0.26434013,47186.0,47185.0,0.178]
[1641108341639,0.174,47186.0,47185.0,0.178]
[1641108342236,0.26434013,47186.0,47185.0,0.70303717]
[1641108346850,0.09034013,47186.0,47185.0,0.52503717]
[1641108347441,0.26434013,47186.0,47185.0,0.70303717]
[1641108347642,0.174,47186.0,47185.0,0.70303717]
[1641108348441,0.26434013,47186.0,47185.0,0.70303717]
[1641108348741,0.09034013,47186.0,47185.0,0.52503717]
[1641108349442,0.28234013,47186.0,47185.0,0.52503717]
[1641108350741,0.09034013,47186.0,47185.0,0.52503717]
[1641108351443,0.28334013,47186.0,47185.0,0.52503717]
[1641108351644,0.28334013,47186.0,47185.0,1.12542335]
[1641108352846,0.09034013,47186.0,47185.0,1.12542335]
[1641108353446,0.28534013,47186.0,47185.0,1.12542335]
[1641108354846,0.09034013,47186.0,47185.0,1.12542335]
[1641108355548,0.28534013,47186.0,47185.0,1.12542335]
[1641108356946,0.09034013,47186.0,47185.0,1.12542335]
[1641108357149,0.09034013,47186.0,47184.0,0.60038618]
[1641108357551,0.28634013,47186.0,47184.0,0.60038618]
[1641108358563,0.196,47186.0,47185.0,0.60038618]
[1641108359064,0.09034013,47187.0,47185.0,0.60038618]
[1641108359263,0.09034013,47186.0,47185.0,0.60038618]
[1641108359863,0.194,47187.0,47185.0,0.60038618]
[1641108359864,0.28434013,47187.0,47185.0,0.60038618]
[1641108360866,0.09034013,47186.0,47185.0,0.60038618]
[1641108361465,0.28734013,47186.0,47185.0,0.60038618]
[1641108363066,0.09034013,47186.0,47185.0,0.60038618]
[1641108363467,0.28734013,47186.0,47185.0,0.60038618]
[1641108363965,0.197,47186.0,47185.0,0.60038618]
[1641108364668,0.28734013,47186.0,47185.0,0.60038618]
[1641108364867,0.09034013,47186.0,47185.0,0.60038618]
[1641108365569,0.28734013,47186.0,47185.0,0.60038618]
[1641108365768,0.197,47186.0,47185.0,0.60038618]
[1641108366369,0.28734013,47186.0,47185.0,1.12867714]
[1641108366870,0.09034013,47186.0,47185.0,1.12867714]
[1641108367673,0.28634013,47186.0,47185.0,1.12867714]
[1641108367976,0.196,47186.0,47185.0,1.12867714]
[1641108368476,0.28634013,47186.0,47185.0,1.12867714]
[1641108368772,0.09034013,47186.0,47185.0,1.12867714]
[1641108369573,0.182,47186.0,47185.0,1.21667714]
[1641108370275,0.27234013,47186.0,47185.0,1.45683161]
[1641108371076,0.09034013,47186.0,47185.0,1.36883161]
[1641108371775,0.24834013,47186.0,47185.0,1.52383161]
[1641108372175,0.158,47186.0,47185.0,1.52383161]
[1641108372477,0.24834013,47186.0,47185.0,1.52383161]
[1641108372879,0.09034013,47186.0,47185.0,1.36883161]
[1641108373580,0.24434013,47186.0,47185.0,1.52083161]
[1641108374080,0.154,47186.0,47185.0,1.52083161]
[1641108374781,0.154,47186.0,47185.0,0.152]
[1641108374982,0.02119513,47192.0,47183.0,0.14033567]
[1641108375391,0.18,47191.0,47183.0,0.14033567]
[1641108375590,1.32469278,47189.0,47186.0,0.59999798]
[1641108376194,1.32469278,47188.0,47187.0,0.36005185]
[1641108376587,1.50469278,47188.0,47187.0,0.36005185]
[1641108377496,1.32469278,47188.0,47187.0,0.36005185]
[1641108377689,1.51869278,47188.0,47187.0,0.36005185]
[1641108378291,1.51869278,47188.0,47186.0,0.36005185]
[1641108378792,0.09034364,47187.0,47185.0,0.59999798]
[1641108379390,1.41503642,47187.0,47185.0,0.59999798]
[1641108379592,1.59303642,47187.0,47185.0,0.72099798]
[1641108380594,0.09034364,47186.0,47185.0,0.72099798]
[1641108381095,0.09034364,47186.0,47185.0,0.83999717]
[1641108381695,0.26534364,47186.0,47185.0,0.99199717]
[1641108383197,0.26534364,47186.0,47185.0,0.152]
[1641108383597,0.25134364,47186.0,47185.0,0.159]
[1641108384016,0.25134364,47186.0,47185.0,0.99928052]
[1641108385014,0.09034364,47186.0,47185.0,0.84028052]
[1641108385617,0.26534364,47186.0,47185.0,0.98628052]
[1641108386915,0.09034364,47186.0,47185.0,0.84028052]
[1641108387618,0.175,47186.0,47185.0,0.99228052]
[1641108388718,0.26534364,47186.0,47185.0,0.99228052]
[1641108389017,0.09034364,47186.0,47184.0,0.84028052]
[1641108389617,0.26534364,47186.0,47184.0,0.99728052]
[1641108389818,0.175,47186.0,47184.0,0.99728052]
[1641108390521,0.09034364,47185.0,47184.0,0.99728052]
[1641108390919,0.09034364,47185.0,47184.0,0.84028052]
[1641108391722,0.09034364,47185.0,47184.0,1.00828052]
[1641108391723,0.173,47185.0,47184.0,1.00828052]
[1641108392121,0.26334364,47185.0,47184.0,0.168]
[1641108393022,0.09034364,47185.0,47183.0,1.34033163]
[1641108393324,0.09034364,47185.0,47183.0,0.14033567]
[1641108393621,0.25934364,47185.0,47183.0,0.30933567]
[1641108393822,0.169,47185.0,47183.0,0.30933567]
[1641108394030,0.169,47185.0,47183.0,1.50933163]
[1641108394923,0.09034364,47184.0,47183.0,1.50933163]
[1641108395123,0.09034364,47184.0,47183.0,1.34033163]
[1641108395625,0.25334364,47184.0,47183.0,1.51633163]
[1641108396124,0.163,47184.0,47183.0,1.99834857]
[1641108396725,0.25334364,47184.0,47183.0,1.99834857]
[1641108396927,0.25334364,47184.0,47183.0,1.8580129]
[1641108397126,0.09034364,47184.0,47183.0,1.6820129]
[1641108397627,0.23834364,47184.0,47183.0,2.00034857]
[1641108399129,0.09034364,47184.0,47183.0,1.82234857]
[1641108399628,0.13,47184.0,47183.0,2.00234857]
[1641108400331,0.22034364,47184.0,47183.0,2.00234857]
[1641108401033,0.09034364,47184.0,47183.0,1.82234857]
[1641108401633,0.24234364,47184.0,47183.0,2.00034857]
[1641108402334,0.24234364,47184.0,47183.0,1.8600129]
[1641108403034,0.09034364,47184.0,47183.0,1.6820129]
[1641108403534,1.32469278,47187.0,47183.0,1.19999596]
[1641108403732,0.139,47184.0,47183.0,1.37799596]
[1641108403932,0.139,47184.0,47183.0,1.51833163]
[1641108404935,0.09034364,47184.0,47183.0,1.82234857]
[1641108405332,1.32469278,47188.0,47183.0,1.82234857]
[1641108405634,0.164,47184.0,47183.0,1.99834857]
[1641108406235,0.164,47184.0,47183.0,1.51633163]
[1641108406838,0.25434364,47184.0,47183.0,1.51633163]
[1641108407037,0.09034364,47184.0,47183.0,1.34033163]
[1641108407337,0.09034364,47184.0,47183.0,1.19999596]
[1641108407739,0.24634364,47184.0,47183.0,1.37799596]
[1641108408040,0.156,47184.0,47183.0,1.37799596]
[1641108408239,0.156,47184.0,47183.0,1.51833163]
[1641108408840,0.24634364,47184.0,47183.0,1.51833163]
[1641108409141,0.09034364,47184.0,47183.0,1.34033163]
[1641108409650,0.25634364,47184.0,47183.0,1.51633163]
[1641108409843,0.166,47184.0,47183.0,1.51633163]
[1641108410146,0.166,47184.0,47183.0,1.37599596]
[1641108410544,0.25634364,47184.0,47183.0,1.37599596]
[1641108410743,0.25634364,47184.0,47183.0,1.51633163]
[1641108410945,0.25634364,47184.0,47183.0,1.34033163]
[1641108411144,0.09034364,47184.0,47183.0,1.34033163]
[1641108411545,1.32469278,47188.0,47183.0,1.34033163]
[1641108411746,0.159,47184.0,47183.0,1.51733163]
[1641108412452,0.159,47184.0,47183.0,1.37699596]
[1641108412751,0.24934364,47184.0,47183.0,1.37699596]
[1641108412948,0.09034364,47184.0,47183.0,1.19999596]
[1641108413348,0.09034364,47184.0,47183.0,1.34033163]
[1641108413549,0.18424364,47184.0,47183.0,1.34033163]
[1641108413749,0.34324364,47184.0,47183.0,1.51733163]
[1641108414049,0.34324364,47184.0,47183.0,0.31733567]
[1641108415052,0.18424364,47184.0,47183.0,1.34033163]
[1641108415854,0.34424364,47184.0,47183.0,1.51633163]
[1641108417054,0.18424364,47184.0,47183.0,1.34033163]
[1641108417256,0.09034364,47184.0,47183.0,1.34033163]
[1641108417655,0.20634364,47184.0,47183.0,1.51933163]
[1641108418163,0.116,47184.0,47183.0,1.51933163]
[1641108418559,0.20634364,47184.0,47183.0,1.51933163]
[1641108419757,0.34734364,47184.0,47183.0,1.69633163]
[1641108421158,0.09034364,47184.0,47183.0,1.34033163]
[1641108421659,0.25334364,47184.0,47183.0,1.51533163]
[1641108421859,0.163,47184.0,47183.0,2.05780767]
[1641108422060,0.25334364,47184.0,47183.0,2.05780767]
[1641108423660,0.09034364,47184.0,47183.0,1.88280767]
[1641108423864,0.25434364,47184.0,47183.0,2.05880767]
[1641108424063,0.25434364,47184.0,47183.0,1.918472]
[1641108425066,0.25434364,47184.0,47183.0,1.742472]
[1641108425067,0.09034364,47184.0,47183.0,1.742472]
[1641108425481,1.32469278,47187.0,47183.0,1.19999596]
[1641108425681,0.139,47184.0,47183.0,1.37899596]
[1641108426082,0.22934364,47184.0,47183.0,1.921472]
[1641108427685,0.26234364,47184.0,47183.0,1.914472]
[1641108429188,0.09034364,47184.0,47183.0,1.742472]
[1641108429901,0.26334364,47184.0,47183.0,1.915472]
[1641108430190,0.173,47184.0,47183.0,1.37299596]
[1641108430892,0.26334364,47184.0,47183.0,1.915472]
[1641108431090,0.09034364,47184.0,47183.0,1.742472]
[1641108431889,0.24934364,47184.0,47183.0,1.919472]
[1641108432090,0.159,47184.0,47183.0,1.37699596]
[1641108433090,0.09034364,47184.0,47183.0,1.742472]
[1641108433592,1.41503642,47187.0,47183.0,1.19999596]
[1641108433789,0.169,47184.0,47183.0,1.37499596]
[1641108435189,0.25934364,47184.0,47183.0,1.917472]
[1641108435689,0.09034364,47184.0,47183.0,1.742472]
[1641108435891,0.26234364,47184.0,47183.0,1.914472]
[1641108436992,0.09034364,47184.0,47183.0,1.742472]